bitfinex-derivatives/quotes_BTCF0:USTF0_20250912
["timestamp","ask_amount","ask_price","bid_price","bid_amount"]
[1757692996894,1.2532164,115220.0,115210.0,0.03654414]
[1757692997194,1.22201413,115220.0,115210.0,0.05843414]
[1757692997787,1.22200763,115220.0,115210.0,0.05843414]
[1757692998195,1.2532099,115220.0,115210.0,0.05843414]
[1757692998593,1.72409514,115220.0,115210.0,0.01926982]
[1757692998780,1.72409514,115220.0,115170.0,0.47863424]
[1757692998781,1.75977964,115220.0,115170.0,0.03103744]
[1757692998986,0.39707,115180.0,115170.0,0.02189]
[1757692999188,1.44317287,115180.0,115170.0,0.02189]
[1757692999793,1.22228763,115180.0,115170.0,0.02189]
[1757692999991,1.44317287,115180.0,115170.0,0.02189]
[1757693000194,0.03627,115170.0,115160.0,0.02189]
[1757693000384,0.42684763,115170.0,115160.0,0.02189]
[1757693000694,0.42684763,115170.0,115150.0,0.01316]
[1757693000902,0.42684763,115170.0,115160.0,0.02154]
[1757693001099,1.22228763,115170.0,115160.0,0.02154]
[1757693001396,0.01373,115160.0,115150.0,0.0347]
[1757693001581,0.01373,115160.0,115150.0,0.02154]
[1757693001582,0.39651,115160.0,115150.0,0.02154]
[1757693001787,1.22164763,115160.0,115150.0,0.02154]
[1757693001982,1.22164763,115160.0,115150.0,0.03434]
[1757693002285,1.20791763,115160.0,115150.0,0.03434]
[1757693002790,1.20783763,115160.0,115150.0,0.03434]
[1757693003996,0.41255763,115160.0,115150.0,0.03434]
[1757693004295,1.20787763,115160.0,115150.0,0.03434]
[1757693004488,1.20787763,115160.0,115150.0,0.03534]
[1757693004796,1.20787763,115160.0,115150.0,0.03634]
[1757693006481,1.22160763,115160.0,115150.0,0.03634]
[1757693007695,1.22160763,115160.0,115150.0,0.02354]
[1757693013395,0.42628763,115160.0,115150.0,0.02354]
[1757693013693,1.22092763,115160.0,115150.0,0.03634]
[1757693015891,1.18505763,115160.0,115150.0,0.50722524]
[1757693016094,0.39057763,115160.0,115150.0,0.50722524]
[1757693016794,0.02977763,115160.0,115150.0,0.50722524]
[1757693016985,0.02977763,115160.0,115150.0,0.59403804]
[1757693017187,0.02977763,115160.0,115150.0,0.50722524]
[1757693019296,0.02977763,115160.0,115150.0,0.25722524]
[1757693020394,0.41255763,115160.0,115150.0,0.03634]
[1757693020590,0.41255763,115160.0,115150.0,0.25722524]
[1757693021594,0.42628763,115160.0,115150.0,0.02354]
[1757693021791,0.45741625,115160.0,115150.0,0.02354]
[1757693023597,0.7251049,115160.0,115150.0,0.02354]
[1757693023897,0.47309104,115160.0,115150.0,0.02354]
[1757693026101,0.42628763,115160.0,115150.0,0.02354]
[1757693026604,0.45741693,115160.0,115150.0,0.02354]
[1757693027803,0.67830217,115160.0,115150.0,0.02354]
[1757693028103,0.72499612,115160.0,115150.0,0.02354]
[1757693028406,0.50411088,115160.0,115150.0,0.02354]
[1757693031205,0.50419593,115160.0,115150.0,0.02354]
[1757693032209,0.47298158,115160.0,115150.0,0.02354]
[1757693032508,1.26742158,115160.0,115150.0,0.02354]
[1757693032706,1.26738158,115160.0,115150.0,0.02354]
[1757693033307,1.29859468,115160.0,115150.0,0.02354]
[1757693033508,1.29859468,115160.0,115150.0,0.2462926]
[1757693033709,1.29855468,115160.0,115150.0,0.2593626]
[1757693034004,1.29855468,115160.0,115150.0,0.03661]
[1757693034209,1.29855468,115160.0,115150.0,0.2593626]
[1757693034608,0.50419468,115160.0,115150.0,0.2593626]
[1757693034812,1.29851468,115160.0,115150.0,0.2593626]
[1757693035606,1.25182073,115160.0,115150.0,0.2593626]
[1757693036007,1.25182073,115160.0,115150.0,0.03661]
[1757693036208,1.25182073,115160.0,115150.0,0.2593626]
[1757693036413,1.25170073,115160.0,115150.0,0.02354]
[1757693037913,1.25174073,115160.0,115150.0,0.02354]
[1757693038213,0.45750073,115160.0,115150.0,0.02354]
[1757693038513,1.25162073,115160.0,115150.0,0.02354]
[1757693038811,1.25154073,115160.0,115150.0,0.02354]
[1757693039615,1.22032763,115160.0,115150.0,0.03661]
[1757693039817,0.42628763,115160.0,115150.0,0.2593626]
[1757693040018,1.22020763,115160.0,115150.0,0.2593626]
[1757693040711,0.42628763,115160.0,115150.0,0.2593626]
[1757693041016,0.02977763,115160.0,115150.0,0.5961754]
[1757693042011,0.05265763,115160.0,115150.0,0.5093626]
[1757693042820,0.41345763,115160.0,115150.0,0.5093626]
[1757693043509,0.02977763,115160.0,115150.0,0.9569755]
[1757693043711,0.3608,115180.0,115170.0,0.03588]
[1757693043912,0.40847637,115180.0,115170.0,0.4813852]
[1757693044117,0.40847637,115180.0,115170.0,0.568183]
[1757693044412,0.38559637,115180.0,115170.0,0.568183]
[1757693044817,0.38659637,115180.0,115170.0,0.818183]
[1757693045511,0.3618,115180.0,115170.0,0.818183]
[1757693045927,0.001,115180.0,115170.0,1.178983]
[1757693046129,0.002,115180.0,115170.0,1.178983]
[1757693046530,0.002,115180.0,115170.0,1.20826754]
[1757693046933,0.002,115180.0,115170.0,1.27838267]
[1757693047625,0.002,115180.0,115170.0,1.28705379]
[1757693047933,0.002,115180.0,115170.0,1.27838267]
[1757693049233,0.3608,115190.0,115180.0,0.1226702]
[1757693049433,0.3608,115190.0,115180.0,0.59745994]
[1757693049728,0.38088917,115200.0,115180.0,0.83485481]
[1757693049930,0.38088917,115200.0,115190.0,0.59745244]
[1757693050536,0.38088917,115200.0,115190.0,0.59645244]
[1757693051132,0.02008917,115200.0,115190.0,0.59645244]
[1757693051433,0.02008917,115200.0,115190.0,0.59545244]
[1757693051830,0.02108917,115200.0,115190.0,0.59545244]
[1757693052134,0.02108917,115200.0,115190.0,0.95625244]
[1757693052324,0.02208917,115200.0,115190.0,0.95625244]
[1757693052521,0.02108917,115200.0,115190.0,0.95725244]
[1757693053336,0.02008917,115200.0,115190.0,0.95825244]
[1757693053836,0.02008917,115200.0,115190.0,1.75245244]
[1757693054032,0.38088336,115220.0,115200.0,0.1226552]
[1757693054232,0.40376336,115220.0,115210.0,0.03588]
[1757693054434,0.40376336,115220.0,115210.0,0.51066974]
[1757693054736,0.40376336,115220.0,115210.0,0.59743744]
[1757693054930,0.02008336,115220.0,115210.0,1.39155744]
[1757693055135,0.02008336,115220.0,115210.0,0.59743744]
[1757693055338,0.02008336,115220.0,115210.0,1.75231744]
[1757693055541,0.02208336,115220.0,115210.0,0.95823744]
[1757693055736,0.02208336,115220.0,115210.0,1.98963231]
[1757693056237,0.02108336,115220.0,115210.0,1.75223744]
[1757693056730,0.001,115220.0,115210.0,2.30825166]
[1757693056936,0.001,115220.0,115210.0,2.32614013]
[1757693057138,0.38368,115250.0,115240.0,0.03588]
[1757693057330,0.38368,115250.0,115240.0,0.51066974]
[1757693057536,0.02288,115250.0,115240.0,0.51066974]
[1757693058730,0.02388,115250.0,115240.0,0.51066974]
[1757693059433,0.001,115250.0,115240.0,0.83480971]
[1757693059634,0.003,115250.0,115240.0,0.83480971]
[1757693060339,0.003,115250.0,115240.0,0.34491275]
[1757693060936,0.003,115250.0,115240.0,0.70571275]
[1757693061238,0.003,115250.0,115240.0,1.49979275]
[1757693061631,0.003,115250.0,115240.0,1.9720804]
[1757693062142,0.003,115250.0,115240.0,1.74979275]
[1757693062638,0.003,115250.0,115240.0,0.7334251]
[1757693062838,0.003,115250.0,115240.0,1.9720004]
[1757693063740,0.003,115250.0,115240.0,1.9719204]
[1757693064237,0.003,115250.0,115240.0,1.74963275]
[1757693064537,0.003,115250.0,115240.0,1.1780004]
[1757693064731,0.003,115250.0,115240.0,0.95571275]
[1757693064931,0.003,115250.0,115240.0,1.74943275]
[1757693065131,0.003,115250.0,115240.0,0.95571275]
[1757693066339,0.02544,115250.0,115240.0,0.86896765]
[1757693066531,0.02544,115250.0,115240.0,0.50816765]
[1757693066833,0.02544,115250.0,115240.0,1.30212765]
[1757693067739,0.02544,115250.0,115240.0,0.50816765]
[1757693068040,0.38624,115250.0,115240.0,1.05196765]
[1757693068337,0.65018,115250.0,115240.0,1.05212765]
[1757693068531,0.65018,115250.0,115240.0,0.25816765]
[1757693071437,0.65018,115250.0,115240.0,0.24509765]
[1757693076349,0.67524711,115250.0,115240.0,0.24509765]
[1757693078642,0.67524711,115250.0,115240.0,0.02281]
[1757693078848,0.67524711,115250.0,115240.0,0.24509765]
[1757693079348,0.42524711,115250.0,115240.0,0.24509765]
[1757693080348,0.42524711,115250.0,115240.0,0.49722022]
[1757693081236,0.445154,115250.0,115240.0,0.49722022]
[1757693081641,0.68235911,115250.0,115240.0,0.49722022]
[1757693082142,0.68235911,115250.0,115230.0,0.02219]
[1757693082143,0.01394,115240.0,115230.0,0.02219]
[1757693082449,0.42224711,115240.0,115230.0,0.25939511]
[1757693083449,0.42424711,115240.0,115230.0,0.27337511]
[1757693085048,0.41030711,115240.0,115230.0,0.51058022]
[1757693085550,0.41030711,115240.0,115230.0,0.27337511]
[1757693085750,0.41030711,115240.0,115230.0,0.51058022]
[1757693086049,0.42307711,115240.0,115230.0,0.25939511]
[1757693086449,0.66028222,115240.0,115230.0,0.23720511]
[1757693086947,0.03436,115230.0,115220.0,0.25867511]
[1757693087152,0.42022711,115230.0,115220.0,0.25867511]
[1757693087654,1.21346711,115230.0,115220.0,0.23720511]
[1757693087952,0.66612781,115230.0,115220.0,0.25867511]
[1757693088141,1.45928781,115230.0,115220.0,0.25867511]
[1757693088344,1.46028781,115230.0,115220.0,0.25867511]
[1757693088543,1.2230827,115230.0,115220.0,0.25867511]
[1757693090252,1.2240827,115230.0,115220.0,0.25867511]
[1757693091046,0.4309227,115230.0,115220.0,0.25867511]
[1757693091246,1.2240827,115230.0,115220.0,0.25867511]
[1757693091751,1.2240827,115230.0,115220.0,0.49588022]
[1757693092552,1.2240827,115230.0,115220.0,0.17966726]
[1757693092752,0.4309227,115230.0,115220.0,0.17966726]
[1757693092949,0.4309227,115230.0,115220.0,0.19328726]
[1757693093251,1.2239627,115230.0,115220.0,0.17966726]
[1757693093750,1.2239627,115230.0,115220.0,0.33786452]
[1757693094552,1.2239627,115230.0,115220.0,0.17966726]
[1757693097453,1.2239627,115230.0,115220.0,0.33786452]
[1757693102153,1.19889559,115230.0,115220.0,0.33786452]
[1757693103754,0.38439,115230.0,115220.0,0.35148452]
[1757693103946,0.02359,115230.0,115220.0,0.43824562]
[1757693104342,0.02359,115230.0,115220.0,0.84644288]
[1757693104551,0.002,115230.0,115220.0,0.84644288]
[1757693104758,0.0237,115230.0,115220.0,0.84644288]
[1757693105054,0.0237,115230.0,115220.0,1.20724288]
[1757693105259,0.002,115230.0,115220.0,1.20724288]
[1757693105854,0.002,115230.0,115220.0,2.00032288]
[1757693107254,0.002,115230.0,115220.0,1.84212562]
[1757693107650,0.002,115230.0,115220.0,2.00032288]
[1757693109058,0.002,115230.0,115220.0,2.01759542]
[1757693109249,0.001,115230.0,115220.0,2.01959542]
[1757693110458,0.04160689,115250.0,115240.0,0.0363]
[1757693110658,0.04160689,115250.0,115240.0,0.19449726]
[1757693110861,0.04160689,115250.0,115240.0,0.35269452]
[1757693112259,0.0217,115250.0,115240.0,0.35269452]
[1757693112445,0.0217,115250.0,115240.0,0.37037335]
[1757693114357,0.0217,115250.0,115240.0,0.35269452]
[1757693114561,0.3825,115250.0,115240.0,0.35269452]
[1757693116359,0.0217,115250.0,115240.0,0.35269452]
[1757693116661,0.0217,115250.0,115240.0,0.43944162]
[1757693119665,0.40267448,115260.0,115250.0,0.12304]
[1757693119867,0.04187448,115260.0,115250.0,0.43943452]
[1757693120166,0.04187448,115260.0,115250.0,1.23243452]
[1757693120868,0.04187448,115260.0,115250.0,1.30192514]
[1757693121064,0.04287448,115260.0,115250.0,0.50892514]
[1757693121570,0.04287448,115260.0,115250.0,0.42218514]
[1757693121761,0.04287448,115260.0,115250.0,0.25036788]
[1757693121762,0.41741448,115260.0,115250.0,0.25036788]
[1757693122165,0.41841448,115260.0,115250.0,0.25036788]
[1757693123160,0.66841448,115260.0,115250.0,0.02268]
[1757693123365,0.03683,115240.0,115230.0,0.02307]
[1757693123563,0.39763,115240.0,115230.0,0.18126726]
[1757693123767,0.39763,115240.0,115230.0,0.02307]
[1757693124072,0.03683,115230.0,115220.0,0.01727254]
[1757693124256,0.39763,115230.0,115220.0,0.01727254]
[1757693124569,0.64763,115230.0,115220.0,0.01727254]
[1757693124768,0.64763,115230.0,115220.0,0.1754698]
[1757693125568,0.64763,115230.0,115220.0,0.1774698]
[1757693125769,0.64763,115230.0,115220.0,0.1794698]
[1757693126570,0.65608104,115230.0,115220.0,0.1794698]
[1757693127371,0.65608104,115230.0,115220.0,0.02127254]
[1757693127570,0.65608104,115230.0,115220.0,0.1794698]
[1757693128263,0.65608104,115230.0,115220.0,0.02127254]
[1757693128463,0.65608104,115230.0,115220.0,0.2025398]
[1757693129465,0.65608104,115230.0,115220.0,0.04434254]
[1757693129673,0.65608104,115230.0,115220.0,0.02127254]
[1757693129966,1.44908104,115230.0,115220.0,0.02127254]
[1757693131360,1.6072783,115230.0,115220.0,0.02127254]
[1757693133772,1.6072783,115230.0,115220.0,0.004]
[1757693133972,1.62714176,115230.0,115220.0,0.004]
[1757693134364,0.83414176,115230.0,115220.0,0.004]
[1757693134565,1.62718176,115230.0,115220.0,0.004]
[1757693135969,0.03683,115200.0,115190.0,0.04066397]
[1757693136174,0.39763,115200.0,115190.0,0.19886123]
[1757693136374,0.39763,115200.0,115190.0,0.21253123]
[1757693138078,0.39763,115200.0,115190.0,0.21653123]
[1757693139476,0.39763,115200.0,115190.0,0.22053123]
[1757693139875,0.38389,115200.0,115190.0,0.22053123]
[1757693140574,0.02309,115200.0,115190.0,0.22053123]
[1757693141676,0.38389,115200.0,115190.0,0.22053123]
[1757693141879,0.39763,115200.0,115190.0,0.22053123]
[1757693143370,0.39763,115200.0,115190.0,0.20686123]
[1757693150385,0.39763,115200.0,115190.0,0.22014123]
[1757693150577,0.39763,115200.0,115190.0,0.20686123]
[1757693151879,0.39763,115200.0,115190.0,0.008]
[1757693152079,0.55582726,115200.0,115190.0,0.008]
[1757693152280,0.96402452,115200.0,115190.0,0.008]
[1757693152474,1.12260722,115200.0,115190.0,0.008]
[1757693153281,1.1481717,115200.0,115170.0,0.23748861]
[1757693153483,0.63388861,115180.0,115150.0,0.47813242]
[1757693153683,0.63388861,115180.0,115160.0,0.26026861]
[1757693153684,0.63388861,115170.0,115160.0,0.26026861]
[1757693155083,0.3964,115170.0,115160.0,0.26026861]
[1757693155888,0.3964,115170.0,115160.0,0.26426861]
[1757693156879,0.3964,115170.0,115160.0,0.27812861]
[1757693157483,0.3964,115170.0,115160.0,0.51561722]
[1757693158081,0.3964,115170.0,115160.0,0.03664]
[1757693158284,0.3964,115170.0,115160.0,0.51161722]
[1757693158882,0.3964,115170.0,115160.0,0.03664]
[1757693159187,0.3964,115170.0,115160.0,0.51161722]
[1757693159576,0.3964,115170.0,115160.0,0.49775722]
[1757693160381,0.3964,115170.0,115160.0,0.02278]
[1757693160581,0.3964,115170.0,115160.0,0.49775722]
[1757693161287,0.3964,115170.0,115160.0,0.51161722]
[1757693161686,0.0356,115160.0,115150.0,0.09178234]
[1757693161883,0.63388861,115160.0,115150.0,0.26026861]
[1757693162989,1.42724861,115160.0,115150.0,0.26026861]
[1757693163491,1.42724861,115160.0,115150.0,0.26226861]
[1757693165191,1.18976,115160.0,115150.0,0.26226861]
[1757693165492,1.42724861,115160.0,115150.0,0.26226861]
[1757693166990,1.18976,115160.0,115150.0,0.26226861]
[1757693167190,1.42724861,115160.0,115150.0,0.26226861]
[1757693168690,1.42724861,115160.0,115150.0,0.02478]
[1757693168992,1.94028174,115160.0,115150.0,0.002]
[1757693170193,1.94028174,115160.0,115150.0,0.001]
[1757693172196,0.01267,115150.0,115140.0,0.001]
[1757693172395,0.0356,115120.0,115110.0,0.02288946]
[1757693172593,0.49876,115120.0,115110.0,0.26037807]
[1757693172794,0.97192,115120.0,115110.0,0.26037807]
[1757693173301,0.98052894,115120.0,115110.0,0.26037807]
[1757693173493,1.24361303,115120.0,115110.0,0.27288946]
[1757693173798,1.24361303,115120.0,115110.0,0.51237807]
[1757693174295,0.01267,115110.0,115080.0,0.37466]
[1757693174490,0.02293,115090.0,115080.0,0.63492861]
[1757693174685,0.02293,115090.0,115080.0,0.7027845]
[1757693175598,0.02293,115090.0,115080.0,0.94027311]
[1757693175792,0.02293,115090.0,115080.0,0.94327311]
[1757693175992,0.02293,115090.0,115080.0,0.87541722]
[1757693176602,0.02293,115090.0,115080.0,0.87941722]
[1757693181391,0.02303946,115090.0,115080.0,0.87941722]
[1757693181605,0.02293,115090.0,115080.0,0.87941722]
[1757693183099,0.02303946,115090.0,115080.0,0.87941722]
[1757693183304,0.02293,115090.0,115080.0,0.87941722]
[1757693185096,0.3608,115110.0,115090.0,0.03486]
[1757693185291,0.04805804,115110.0,115100.0,0.74732583]
[1757693185493,1.27638934,115120.0,115110.0,0.03486]
[1757693185693,1.30195966,115120.0,115110.0,0.27234861]
[1757693186305,1.31459966,115120.0,115110.0,0.27234861]
[1757693187006,1.31466386,115120.0,115110.0,0.27234861]
[1757693187208,1.31559966,115120.0,115110.0,0.27334861]
[1757693188199,1.31568569,115120.0,115110.0,0.26060861]
[1757693188408,1.31567533,115120.0,115110.0,0.26060861]
[1757693188609,1.55308827,115120.0,115110.0,0.26060861]
[1757693189309,1.55316191,115120.0,115110.0,0.26060861]
[1757693189508,0.759377,115120.0,115110.0,0.26060861]
[1757693189709,1.55312827,115120.0,115110.0,0.26060861]
[1757693190602,0.45170257,115120.0,115110.0,0.26060861]
[1757693190802,1.23290257,115120.0,115110.0,0.51083722]
[1757693191609,1.23693363,115120.0,115110.0,0.27334861]
[1757693192004,1.47442224,115120.0,115110.0,0.26060861]
[1757693192215,1.97068704,115120.0,115110.0,0.001]
[1757693192512,1.97068704,115120.0,115110.0,0.23848861]
[1757693192711,1.73319843,115120.0,115110.0,0.23848861]
[1757693193103,1.80206593,115120.0,115110.0,0.23848861]
[1757693193300,1.80214148,115120.0,115110.0,0.23848861]
[1757693193505,1.80206593,115120.0,115110.0,0.23848861]
[1757693194006,1.7933553,115120.0,115110.0,0.26060861]
[1757693194310,1.79328974,115120.0,115110.0,0.26060861]
[1757693194804,1.793392,115120.0,115110.0,0.02312]
[1757693195008,1.79328974,115120.0,115110.0,0.26060861]
[1757693195210,1.79328974,115120.0,115110.0,0.001]
[1757693195409,1.55580113,115120.0,115110.0,0.26060861]
[1757693195606,1.79336133,115120.0,115110.0,0.26060861]
[1757693195813,1.79328974,115120.0,115110.0,0.26060861]
[1757693196500,1.79337967,115120.0,115110.0,0.26060861]
[1757693196709,1.79337442,115120.0,115110.0,0.26060861]
[1757693196913,1.79328974,115120.0,115110.0,0.26060861]
[1757693197309,0.51196113,115120.0,115110.0,0.26060861]
[1757693197511,1.30580113,115120.0,115110.0,0.27334861]
[1757693197811,1.30588934,115120.0,115110.0,0.27334861]
[1757693198014,1.30589062,115120.0,115110.0,0.27334861]
[1757693198208,1.30589062,115120.0,115110.0,0.51083722]
[1757693198209,0.43045363,115120.0,115110.0,0.51083722]
[1757693198412,0.04719783,115120.0,115110.0,0.76083722]
[1757693198612,0.04712363,115120.0,115110.0,0.76083722]
[1757693198802,0.04722445,115120.0,115110.0,0.76083722]
[1757693199008,0.04723309,115120.0,115110.0,0.84768792]
[1757693199307,0.04712363,115120.0,115110.0,0.59768792]
[1757693200214,0.04719853,115120.0,115110.0,0.60630717]
[1757693200414,0.04712363,115120.0,115110.0,0.60630717]
[1757693200715,0.04712363,115120.0,115110.0,0.51083722]
[1757693201016,0.0697346,115120.0,115110.0,0.51083722]
[1757693201317,0.06974975,115120.0,115110.0,0.58151695]
[1757693201511,0.06976183,115120.0,115110.0,0.58151695]
[1757693201705,0.06965363,115120.0,115110.0,0.67690452]
[1757693202110,0.06965363,115120.0,115110.0,0.66836765]
[1757693202306,0.06973263,115120.0,115110.0,0.66836765]
[1757693202512,0.04720351,115120.0,115110.0,0.67709269]
[1757693202815,0.04720106,115120.0,115110.0,0.67709269]
[1757693203119,0.04719723,115120.0,115110.0,1.03789269]
[1757693203319,0.04712363,115120.0,115110.0,1.03789269]
[1757693203521,0.04720575,115120.0,115110.0,1.03789269]
[1757693203710,0.04720246,115120.0,115110.0,1.03789269]
[1757693203915,0.04712363,115120.0,115110.0,1.03789269]
[1757693204419,0.02159331,115120.0,115110.0,1.03789269]
[1757693204621,0.02169709,115120.0,115110.0,1.03789269]
[1757693204816,0.02159331,115120.0,115110.0,1.03789269]
[1757693205013,0.02168077,115120.0,115110.0,1.03789269]
[1757693205214,0.02015178,115130.0,115120.0,0.0868431]
[1757693205414,0.04519935,115130.0,115120.0,1.99012893]
[1757693205613,0.02015178,115130.0,115120.0,2.24012893]
[1757693205821,0.01031178,115130.0,115120.0,2.24012893]
[1757693206321,0.01037347,115130.0,115120.0,2.24012893]
[1757693206523,0.39597,115160.0,115150.0,0.03486]
[1757693206717,0.40821463,115160.0,115150.0,0.50983722]
[1757693207022,0.40832289,115160.0,115150.0,0.50983722]
[1757693207210,0.42092729,115160.0,115150.0,0.03486]
[1757693207414,0.40821463,115160.0,115150.0,0.50983722]
[1757693207611,0.40829312,115160.0,115150.0,0.50983722]
[1757693207816,0.02694844,115160.0,115150.0,0.50983722]
[1757693208017,0.02461202,115160.0,115150.0,0.50983722]
[1757693208212,0.02960409,115160.0,115150.0,0.50983722]
[1757693208420,0.02961939,115160.0,115150.0,0.50983722]
[1757693208618,0.02961272,115160.0,115150.0,0.50983722]
[1757693208825,0.02953,115160.0,115150.0,0.50983722]
[1757693209213,0.02960077,115160.0,115150.0,0.50983722]
[1757693209419,0.02960146,115160.0,115150.0,0.03486]
[1757693209621,0.02962466,115160.0,115150.0,0.50983722]
[1757693209924,0.02959796,115160.0,115150.0,0.50983722]
[1757693210123,0.02953,115160.0,115150.0,0.50983722]
[1757693211824,0.02959801,115160.0,115150.0,0.50983722]
[1757693212023,0.02953,115160.0,115150.0,0.50983722]
[1757693212419,0.02961139,115160.0,115150.0,0.50983722]
[1757693212618,0.02953,115160.0,115150.0,0.50983722]
[1757693212819,0.02963066,115160.0,115150.0,0.50983722]
[1757693213015,0.02953,115160.0,115150.0,0.50983722]
[1757693213224,0.02960532,115160.0,115150.0,0.50983722]
[1757693213424,0.02953,115160.0,115150.0,0.50983722]
[1757693213723,0.02963618,115160.0,115150.0,0.27234861]
[1757693214022,0.02953,115160.0,115150.0,0.27234861]
[1757693214218,0.02953,115160.0,115150.0,0.02212]
[1757693214219,0.89147677,115160.0,115150.0,0.02212]
[1757693214527,0.03473,115150.0,115140.0,0.98778273]
[1757693214730,0.39561669,115150.0,115140.0,0.98778273]
[1757693214915,0.39553,115150.0,115140.0,1.14619546]
[1757693215120,0.39563946,115150.0,115140.0,1.14619546]
[1757693215328,0.02118,115150.0,115140.0,1.14619546]
[1757693215521,0.02125711,115150.0,115140.0,1.14619546]
[1757693215719,0.02118,115150.0,115140.0,1.14619546]
[1757693215920,0.02124967,115150.0,115140.0,1.14619546]
[1757693216123,0.02118,115150.0,115140.0,0.35127546]
[1757693216428,0.02124107,115150.0,115140.0,0.35127546]
[1757693216633,0.02118,115150.0,115140.0,0.35127546]
[1757693216820,0.02126958,115150.0,115140.0,0.35127546]
[1757693217020,0.02118,115150.0,115140.0,0.35127546]
[1757693217223,0.02628946,115150.0,115140.0,0.35127546]
[1757693217422,0.02618,115150.0,115140.0,0.35127546]
[1757693217618,0.02628946,115150.0,115140.0,0.35127546]
[1757693217826,0.02618,115150.0,115140.0,0.35127546]
[1757693218026,0.02628946,115150.0,115140.0,0.35127546]
[1757693218326,0.02618,115150.0,115140.0,0.35127546]
[1757693218526,0.00506552,115150.0,115140.0,0.68810346]
[1757693218726,0.005,115150.0,115140.0,0.84651619]
[1757693218926,0.00509521,115150.0,115140.0,0.84651619]
[1757693219126,0.005,115150.0,115140.0,0.68810346]
[1757693219327,0.02628522,115150.0,115140.0,0.28445]
[1757693219628,0.02618,115150.0,115140.0,0.60127546]
[1757693219933,0.02628696,115150.0,115140.0,0.60127546]
[1757693220133,0.02618,115150.0,115140.0,0.60127546]
[1757693220328,0.02626455,115150.0,115140.0,1.14631546]
[1757693220628,0.03473,115140.0,115130.0,0.02171]
[1757693220828,0.39563946,115140.0,115130.0,0.02171]
[1757693221027,0.03473,115130.0,115120.0,0.1974344]
[1757693221228,0.03480143,115130.0,115120.0,0.1974344]
[1757693221534,0.03473,115130.0,115120.0,0.1974344]
[1757693221733,0.03482534,115130.0,115120.0,0.1974344]
[1757693221932,0.03473,115130.0,115120.0,0.1974344]
[1757693222235,0.03481981,115130.0,115120.0,0.2109244]
[1757693222432,0.03473,115130.0,115120.0,0.19361273]
[1757693222625,0.03479328,115130.0,115120.0,0.19361273]
[1757693222837,0.02118,115130.0,115120.0,0.35202546]
[1757693223130,0.02126116,115130.0,115120.0,1.14726546]
[1757693223436,0.02118,115130.0,115120.0,1.14726546]
[1757693223633,0.02126839,115130.0,115120.0,1.14726546]
[1757693223827,0.02118,115130.0,115120.0,1.14726546]
[1757693224027,0.02128821,115130.0,115120.0,1.14726546]
[1757693224228,0.02218,115130.0,115120.0,1.14726546]
[1757693224429,0.02218,115130.0,115120.0,0.35202546]
[1757693224430,0.02227164,115130.0,115120.0,0.35202546]
[1757693224727,0.02218,115130.0,115120.0,0.35202546]
[1757693224927,0.02227811,115130.0,115120.0,0.35202546]
[1757693225134,0.02218,115130.0,115120.0,0.19361273]
[1757693225432,0.38304351,115130.0,115120.0,0.19361273]
[1757693225634,0.38298,115130.0,115120.0,0.19361273]
[1757693225935,0.38306676,115130.0,115120.0,0.19361273]
[1757693226236,0.38298,115130.0,115120.0,0.35202546]
[1757693226437,0.38308946,115130.0,115120.0,0.35202546]
[1757693226733,0.38298,115130.0,115120.0,0.35202546]
[1757693226936,0.3830438,115130.0,115120.0,0.35202546]
[1757693227130,0.38298,115130.0,115120.0,0.35202546]
[1757693227335,0.38308934,115130.0,115120.0,0.35202546]
[1757693227531,0.38298,115130.0,115120.0,0.35202546]
[1757693227740,0.38306576,115130.0,115120.0,0.0352]
[1757693227937,0.38298,115130.0,115120.0,0.35202546]
[1757693228136,0.3830836,115130.0,115120.0,0.35202546]
[1757693228438,0.38298,115130.0,115120.0,0.35202546]
[1757693228633,0.38306052,115130.0,115120.0,0.35202546]
[1757693228833,0.38298,115130.0,115120.0,0.35202546]
[1757693229132,0.00110458,115130.0,115120.0,0.59728129]
[1757693229329,0.001,115130.0,115120.0,0.68886856]
[1757693229529,0.00107145,115130.0,115120.0,0.68886856]
[1757693229737,0.001,115130.0,115120.0,0.68886856]
[1757693229926,0.00110519,115130.0,115120.0,1.04966856]
[1757693230133,0.001,115130.0,115120.0,1.04966856]
[1757693230340,0.0010667,115130.0,115120.0,1.04966856]
[1757693230639,0.001,115130.0,115120.0,1.20808129]
[1757693230827,0.0011077,115130.0,115120.0,1.20808129]
[1757693231034,0.001,115130.0,115120.0,1.20808129]
[1757693231233,0.00110946,115130.0,115120.0,1.20808129]
[1757693231536,0.001,115130.0,115120.0,1.20808129]
[1757693231737,0.00107621,115130.0,115120.0,1.20808129]
[1757693231937,0.001,115130.0,115120.0,1.20808129]
[1757693232134,0.00109486,115130.0,115120.0,1.20808129]
[1757693232338,0.001,115130.0,115120.0,0.95407072]
[1757693232538,0.00108173,115130.0,115120.0,0.95407072]
[1757693232739,0.001,115130.0,115120.0,0.95407072]
[1757693232941,0.00106592,115130.0,115120.0,0.95407072]
[1757693233141,0.001,115130.0,115120.0,0.95407072]
[1757693233330,0.00106743,115130.0,115120.0,0.95407072]
[1757693233538,0.001,115130.0,115120.0,0.95407072]
[1757693233738,0.00110946,115130.0,115120.0,0.95407072]
[1757693233942,0.001,115130.0,115120.0,0.95407072]
[1757693234143,0.001071,115130.0,115120.0,0.95407072]
[1757693234443,0.001,115130.0,115120.0,0.95407072]
[1757693234644,0.00106964,115130.0,115120.0,0.95407072]
[1757693234843,0.001,115130.0,115120.0,0.95407072]
[1757693235043,0.0011043,115130.0,115120.0,0.95407072]
[1757693235338,0.001,115130.0,115120.0,0.95407072]
[1757693235546,0.001077,115130.0,115120.0,0.95407072]
[1757693235738,0.001,115130.0,115120.0,0.95407072]
[1757693235939,0.00108034,115130.0,115120.0,0.95407072]
[1757693236140,0.001,115130.0,115120.0,0.95407072]
[1757693236343,0.00110106,115130.0,115120.0,0.95407072]
[1757693236547,0.001,115130.0,115120.0,0.95407072]
[1757693236745,0.00110946,115130.0,115120.0,0.95407072]
[1757693237045,0.001,115130.0,115120.0,0.95407072]
[1757693237253,0.00106994,115130.0,115120.0,0.95407072]
[1757693237448,0.001,115130.0,115120.0,0.95407072]
[1757693237648,0.00110946,115130.0,115120.0,0.7328431]
[1757693237848,0.001,115130.0,115120.0,0.95407072]
[1757693238150,0.00106975,115130.0,115120.0,0.95407072]
[1757693238348,0.001,115130.0,115120.0,0.95407072]
[1757693238550,0.00110056,115130.0,115120.0,0.95407072]
[1757693238750,0.001,115130.0,115120.0,0.95407072]
[1757693238949,0.00110497,115130.0,115120.0,0.95407072]